{"text_format":"1","workbook":"xlsx","n_sheets":2,"sheets":["Κωδικοί Συναλλαγών","Συμβάσεις Εξωτερικής Ανάθεσης"],"not_rendered":{"charts":0,"images":1,"macros":0,"external_links":3,"defined_names":9,"comments":1,"pivot_tables":0},"unopened":[],"bounds":{"document_bytes":16777216,"sheet_cells":100000,"rows_first":2000,"rows_last":500,"rows_between":2000,"halvings":0,"cell_chars":16384,"cell_head_chars":4096},"cells_cut":0,"cells_raw":0,"read":"whole","date_system":"1900"}

{"sheet":"Κωδικοί Συναλλαγών","index":0,"n_rows":29,"n_cols":4,"rows_kept":29,"cut":false,"hidden":true,"merged":[]}
[]
[]
[]
[]
[]
[]
[]
[]
[null,"Κωδικός Συναλλαγής","Αριθμός Σύμβασης Ανάθεσης","Ημερομηνία συναλλαγής"]
[null,1,"Αριθμός/Λεκτικό","Date"]
[null,2]
[null,3]
[null,4]
[null,5]
[null,6]
[null,7]
[null,8]
[null,9]
[null,10]
[null,11]
[null,12]
[null,13]
[null,14]
[null,15]
[null,16]
[null,17]
[null,18]
[null,19]
[null,20]

{"sheet":"Συμβάσεις Εξωτερικής Ανάθεσης","index":1,"n_rows":34,"n_cols":32,"rows_kept":34,"cut":false,"hidden":false,"merged":[[9,15,9,19],[11,14,11,20],[36,2,36,3],[23,6,25,6],[23,26,25,26],[23,4,25,4],[23,7,25,7],[23,14,25,14],[23,8,25,8],[23,5,25,5],[24,16,24,21],[23,11,25,11],[23,10,25,10],[23,9,25,9],[24,22,24,24],[23,15,23,24],[24,15,25,15],[23,12,25,12],[22,2,22,3],[23,13,25,13],[23,31,25,31],[23,28,25,28],[23,30,25,30],[23,27,25,27],[23,29,25,29],[23,25,25,25]]}
[]
[]
[]
[]
[]
[]
[]
[]
[]
[null,null,null,null,null,null,null,null,null,null,null,null,null,null,null,"ΔΙΕΥΘΥΝΣΗ ΕΠΟΠΤΕΙΑΣ ΠΙΣΤΩΤΙΚΟΥ ΣΥΣΤΗΜΑΤΟΣ"]
[]
[null,null,null,null,null,null,null,null,null,null,null,null,null,null,"Πίνακας 1. Συμβάσεις Εξωτερικής Ανάθεσης Δραστηριοτήτων Διαχείρισης Πιστώσεων σε Πάροχο Πιστωτικών Υπηρεσιών\n[Table 1. Credit Servicing Activities Outsourcing Agreements to Credit Service Providers]"]
[]
[]
[null,null,null,null,null,null,null,null,null,null,null,null,null,null,null,null,null,"Κωδικός Διαχειριστή Πιστώσεων :"]
[null,null,null,null,null,null,null,null,null,null,null,null,null,null,null,null,null,"Διαχειριστής Πιστώσεων :"]
[null,null,null,null,null,null,null,null,null,null,null,null,null,null,null,null,null,"Ημερομηνία Στοιχείων :"]
[null,null,null,null,null,null,null,null,null,null,null,null,null,null,null,null,null,"Αρμόδιος Υπάλληλος :"]
[null,null,null,null,null,null,null,null,null,null,null,null,null,null,null,null,null,"Αριθμός Τηλεφώνου :"]
[null,null,null,null,null,null,null,null,null,null,null,null,null,null,null,null,null,"Ημερομηνία Συμπλήρωσης :"]
[null,null,null,null,null,null,null,null,null,null,null,null,null,null,null,null,null,"Διορθωτική Αποστολή :"]
[]
[null,null,"(ποσά σε χιλιάδες €)/(amounts in thousand €)"]
[null,null,null,null,"Ημερομηνία Σύμβασης Εξωτερικής Ανάθεσης [Outsourcing Agreement Date]","Ημερομηνία Έναρξης Υπηρεσιών Εξωτερικής Ανάθεσης \n[Start Date of Outsourcing Services]","Διάρκεια [Term]","Όνομα Χαρτοφυλακίου \n[Portfolio Name]","Επωνυμία Παρόχου Πιστωτικών Υπηρεσιών\n[Name of Credit Service Provider] ","Κράτος-Μέλος Καταγωγής Παρόχου Πιστωτικών Υπηρεσιών [Member State of Credit Service Provider]","Επωνυμία Αγοραστή Πιστώσεων [Credit Purchaser Name] ","Χώρα Καταγωγής Αγοραστή Πιστώσεων [Home Country of Credit Purchaser]","Επωνυμία Αντιπροσώπου Αγοραστή Πιστώσεων \n[Name of Representative of a Third-Country Credit Purchaser] ","Κράτος-Μέλος Καταγωγής Αντιπροσώπου Αγοραστή Πιστώσεων από Τρίτη Χώρα \n[Member State of Representative of a Third-Country Credit Purchaser]","Αριθμός Δανείων [Number of Loans]","Συνολική Νομική Απαίτηση [Total Legal Claim]",null,null,null,null,null,null,null,null,null,"\nΕξασφαλίσεις \n[Collateral]","Δήλωση Συμμόρφωσης του Παρόχου Πιστωτικών Υπηρεσιών με την Ισχύουσα Νομοθεσία και με τις Διατάξεις που Εφαρμόζονται στα Δικαιώματα του Πιστωτή [Compliance of Credit Service Provider with Applicable Law and the Provisions Relevant to the Creditor Rights]","Δραστηριότητες Διαχείρισης Πιστώσεων που αφορά η Εξωτερική Ανάθεση [Outsourced Activities]","Δήλωση Μη Μεταβολής της Συμβατικής Σχέσης μεταξύ του Διαχειριστή Πιστώσεων και του Αγοραστή Πιστώσεων και των Υποχρεώσεων του Διαχειριστή Πιστώσεων προς τον Αγοραστή Πιστώσεων ή προς τους Δανειολήπτες [Declaration of No Change in Contractual Relationship between Credit Servicer and Credit Purchaser and the Credit Servicer Obligations Towards the Credit Purchaser or the Borrowers]","Δήλωση Μη Παρεμπόδισης της Εποπτείας του Διαχειριστή Πιστώσεων λόγω της Εξωτερικής Ανάθεσης Υπηρεσιών [Declaration that the Outsourcing to the Credit Service Provider does not Prevent the Supervision by Competent Authorities of a Credit Servicer]","Δήλωση Διασφάλισης Πρόσβασης του Διαχειριστή Πιστώσεων στις Πληροφορίες σε σχέση με τις Εξωτερικά Ανατεθείσες Δραστηριότητες [Declaration of Credit Servicer Access to Information with regards to Outsourced Activities]","Δήλωση Μη Κατοχής Χρηματικών Ποσών από Δανειολήπτες από τον Πάροχο Πιστωτικών Υπηρεσιών [Declaration of the Credit Service Provider of Non Possession of Amounts of Money from Borrowers]"]
[null,null,null,null,null,null,null,null,null,null,null,null,null,null,null,null,"Υπόλοιπο απαιτήσεων [Balance]",null,null,null,null,null,"Λοιπές Απαιτήσεις Εκτός Ισολογισμού [Other Off-balance Sheet Exposures]"]
[null,null,null,null,null,null,null,null,null,null,null,null,null,null,null,null,null,"Εξυπηρετούμενα Ανοίγματα \n[Performing Exposures]","Μη Εξυπηρετούμενα Ανοίγματα \n[Non Performing Exposures]","Aβέβαιης Eίσπραξης (0-90 ημέρες)\n [UTP (0 -90 dpd)]","Καθυστέρηση 91+ ημέρες [91+ dpd]","Καταγγελμένα [Denounced]",null,"Μη Λογιστικοποιημένοι Τόκοι [Off-balance Sheet Interest]","Λογιστικές Διαγραφές [Accounting Write-offs]"]
[null,null,null,null,"010","020","030","040","050","060","070","080","090","100","110","120","130","140","150","160","170","180","190","200","210","220","230","240","250","260","270","280"]
[null,null,"010","ΣΥΝΟΛΟ ΧΑΡΤΟΦΥΛΑΚΙΩΝ [TOTAL]",null,null,null,null,null,null,null,null,null,null,{"$f":"SUM(O29:O31)","v":0},{"$f":"SUM(P29:P31)","v":0},{"$f":"SUM(Q29:Q31)","v":0},0,0,0,0,0,{"$f":"SUM(W29:W31)","v":0},0,0,0]
[null,null,"020","Στεγαστικά Δάνεια [Residential Loans]",null,null,null,null,null,null,null,null,null,null,null,{"$f":"Q29+W29","v":0},{"$f":"SUM(R29:S29)","v":0},null,{"$f":"SUM(T29:V29)","v":0},null,null,null,{"$f":"SUM(X29:Y29)","v":0}]
[null,null,"030","Καταναλωτικά Δάνεια [Consumer Loans]",null,null,null,null,null,null,null,null,null,null,null,{"$f":"Q30+W30","v":0},{"$f":"SUM(R30:S30)","v":0},null,{"$f":"SUM(T30:V30)","v":0},null,null,null,{"$f":"SUM(X30:Y30)","v":0}]
[null,null,"040","ΣΥΝΟΛΟ Επιχειρηματικών Δανείων \n[TOTAL Business Loans]",null,null,null,null,null,null,null,null,null,null,{"$f":"SUM(O32:O34)","v":0},{"$f":"SUM(P32:P34)","v":0},{"$f":"SUM(Q32:Q34)","v":0},0,0,0,0,0,{"$f":"SUM(W32:W34)","v":0},0,0,0]
[null,null,"050","Ελεύθεροι Επαγγελματίες και Πολύ Μικρές Επιχειρήσεις\n[Small Business & Professionals - SBPs]",null,null,null,null,null,null,null,null,null,null,null,{"$f":"Q32+W32","v":0},{"$f":"SUM(R32:S32)","v":0},null,{"$f":"SUM(T32:V32)","v":0},null,null,null,{"$f":"SUM(X32:Y32)","v":0}]
[null,null,"060","Μικρές και Μεσαίες Επιχειρήσεις \n[Small & Medium Enterprises - SMEs]",null,null,null,null,null,null,null,null,null,null,null,{"$f":"Q33+W33","v":0},{"$f":"SUM(R33:S33)","v":0},null,0,null,null,null,{"$f":"SUM(X33:Y33)","v":0}]
[null,null,"070","Μεγάλες Επιχειρήσεις [Corporate]",null,null,null,null,null,null,null,null,null,null,null,{"$f":"Q34+W34","v":0},{"$f":"SUM(R34:S34)","v":0},null,0,null,null,null,{"$f":"SUM(X34:Y34)","v":0}]